Workbook

Sheet стандарт
F1: до 165 ПМ | G1: =H4*165 -> 499620 | H1: 0.03
F2: від 165 до 290 ПМ | G2: =H4*290 -> 878120 | H2: 0.04
F3: більше 290 ПМ | H3: 0.05
D4: КАЛЬКУЛЯТОР | H4: 3028
D5: Обрані Споживачем умови кредитування
B7: Кредит видається на: | D7: АВТО нове | E7: Хюндай
B8: Дата надання кредиту | D8: =TODAY() -> 2025-04-30
B9: Сума кредиту,грн.: | D9: 100000 | E9: гривень
B10: Забезпечення | D10: 335000 | E10: гривень | J10: Заповніть дані, зазначені червоним кольором
B11: Строк користування кредитом (в місяцях): | D11: 84
B12: Погашення основної суми кредиту: щомісяця
B13: Погашення процентів: щомісяця
A14: =ROUND(D9/D11,2) -> 1190.48 | B14: Номінальна процентна ставка: | D14: =VLOOKUP(D15,'Номінальна %ставка'!$A$2:$H$8,MATCH(стандарт!$D$11,'Номінальна %ставка'!$A$2:$H$2,0),0) -> 0.0899 | E14: річних | F14: =D14 -> 0.0899 | I14: =F14/12 -> 0.007491666667
B15: Авансовий внесок | D15: 0.7 | F15: =D10*D15 -> 234500 | G15: гривень
B16: Супутні витрати позичальника:
A17: =DATE(YEAR(B40),MONTH(B40)+1,DAY(B40)) -> 2025-05-30 | B17: комісія за надання кредиту (разова): | D17: 0 | E17: від основної суми кредиту/ Всього: | G17: =D17*D9 -> 0 | I17: гривень
B18: обслуговування кредитної заборгованості: | D18: 0 | E18: на місяць від основної суми кредиту: | G18: =D18*D9 -> 0 | I18: гривень
B19: розрахунково-касове обслуговування: | G19: 0 | I19: гривень
B20: страхування НВ: | D20: 0 | E20: на рік від основної суми кредиту: | G20: =D20*D9 -> 0 | I20: гривень
B21: страхування КАСКО: | D21: 0.0699 | E21: на рік від залогової вартості: | G21: =D10*D21 -> 23416.5 | I21: гривень
B22: послуги нотаріуса: | G22: 0 | I22: гривень
B23: надання витягів/внесення запису(ів) до Державного реєстру обтяжень рухомого майна | E23: фіксована сума (одноразово) | G23: 0 | I23: гривень
B24: Державна реєстрація транспортного засобу | E24: фіксована сума (одноразово) | G24: 1500 | I24: гривень
B25: Отримання витягів/внесення запису до ДРОРМ | G25: 2000 | I25: гривень
B26: Збір до Пенсійного фонду | D26: =IF(D10<G1,H1,IF(AND(D10>=G1,D10<=G2),H2,IF(D10>G2,H3))) -> 0.03 | E26: від суми кредиту (одноразово) | G26: =(D10/1.2)*D26 -> 8375 | I26: гривень
B27: оцінка майна: | E27: фіксована сума (одноразово) | G27: 0 | I27: гривень
B28: інша плата за послуги кредитного посередника | G28: 0 | I28: гривень
B29: ВСЬОГО | G29: =SUM(G17:G28) -> 35291.5 | I29: гривень
F31: =PMT(F14/12,E11,-D9) ->  | G31: =IPMT(F14/12,1,24,-D9) -> 749.1666667
D32: Розрахунок загальної вартості споживчого кредиту та реальної процентної ставки
B34: Дата видачі кредиту/дата платежу | C34: Чиста сума кредиту/сума платежу за розрахунковий період, грн. | D34: Види платежів за кредитом | U34: Орієнтовна реальна річна процентна ставка, % | V34: Орієнтовні загальні витрати за кредитом, грн
D35: сума кредиту за договором | E35: проценти за користування кредитом | F35: платежі за супутні послуги
F36: банку | K36: третіх осіб | T36: кредитного посередника (за наявності)
F37: обслуговування кредитної заборгованості | G37: РКО | I37: комісія за надання кредиту | J37: інші послуги банку (отримання витягів/внесення запису до ДРОРМ) | K37: страхування НВ | L37: послугами нотаріусів | M37: страхування КАСКО | N37: оцінка майна | O37: надання витягів/внесення запису(ів) до Державного реєстру обтяжень рухомого майна | P37: інші послуги третіх осіб | R37: Державна реєстрація транспортного засобу | T37: інша плата за послуги кредитного посередника
B38: 1 | C38: 2 | D38: 3 | E38: 4 | F38: 5 | G38: 6 | I38: 7 | J38: 8 | K38: 9 | L38: 10 | M38: 11 | N38: 12 | O38: 13 | P38: 14 | R38: 15 | T38: 16 | U38: 17 | V38: 18
W39: остаток
A40: e | B40: =D8 -> 2025-04-30 | C40: =-(D40-SUM(F40:T40)) -> -64708.5 | D40: =D9 -> 100000 | E40: х | F40: =$G$18 -> 0 | G40: =G19 -> 0 | I40: =G17 -> 0 | J40: =G25 -> 2000 | K40: =IF(X40="страховка",$G$20,0) -> 0 | L40: =G22 -> 0 | M40: =IF(X40="страховка",$G$21,0) -> 23416.5 | N40: =G27 -> 0 | O40: =G23 -> 0 | P40: =G24 -> 1500 | R40: =G26 -> 8375 | T40: =G28 -> 0 | U40: х | V40: х | W40: 100000 | X40: =IF(MONTH($B$40)-MONTH(B40)=0,"страховка","нет") -> страховка
A41: e | B41: =DATE(YEAR(B40),MONTH(B40)+1,DAY(B40)) -> 2025-05-30 | C41: =SUM(D41:V41) -> 1939.646667 | D41: =$A$14 -> 1190.48 | E41: =W40*$D$14/360*Y41 -> 749.1666667 | F41: 0 | K41: =IF(X41="страховка",$G$20,0) -> 0 | M41: =IF(X41="страховка",$G$21,0) -> 0 | W41: =W40-D41 -> 98809.52 | X41: =IF(MONTH($B$40)-MONTH(B41)=0,"страховка","нет") -> нет | Y41: =B41-B40 -> 30
A42: e | B42: =DATE(YEAR(B41),MONTH(B41)+1,DAY(B41)) -> 2025-06-30 | C42: =SUM(D42:V42) -> 1955.40292 | D42: =$A$14 -> 1190.48 | E42: =W41*$D$14/360*Y42 -> 764.9229202 | F42: 0 | K42: 0 | M42: 0 | W42: =W41-D42 -> 97619.04 | X42: нет | Y42: =B42-B41 -> 31
A43: e | B43: 2025-07-30 | C43: 1921.809308 | D43: 1190.48 | E43: 731.329308 | F43: 0 | K43: 0 | M43: 0 | W43: 96428.56 | X43: нет | Y43: 30
A44: e | B44: 2025-08-30 | C44: 1936.970983 | D44: 1190.48 | E44: 746.490983 | F44: 0 | K44: 0 | M44: 0 | W44: 95238.08 | X44: нет | Y44: 31
A45: e | B45: 2025-09-30 | C45: 1927.755014 | D45: 1190.48 | E45: 737.2750143 | F45: 0 | K45: 0 | M45: 0 | W45: 94047.6 | X45: нет | Y45: 31
A46: e | B46: 2025-10-30 | C46: 1895.05327 | D46: 1190.48 | E46: 704.57327 | F46: 0 | K46: 0 | M46: 0 | W46: 92857.12 | X46: нет | Y46: 30
A47: e | B47: 2025-11-30 | C47: 1909.323077 | D47: 1190.48 | E47: 718.843077 | F47: 0 | K47: 0 | M47: 0 | W47: 91666.64 | X47: нет | Y47: 31
A48: e | B48: 2025-12-30 | C48: 1877.215911 | D48: 1190.48 | E48: 686.7359113 | F48: 0 | K48: 0 | M48: 0 | W48: 90476.16 | X48: нет | Y48: 30
A49: e | B49: 2026-01-30 | C49: 1890.89114 | D49: 1190.48 | E49: 700.4111397 | F49: 0 | K49: 0 | M49: 0 | W49: 89285.68 | X49: нет | Y49: 31
A50: e | B50: 2026-03-02 | C50: 1881.675171 | D50: 1190.48 | E50: 691.1951711 | F50: 0 | K50: 0 | M50: 0 | W50: 88095.2 | X50: нет | Y50: 31
A51: e | B51: 2026-04-02 | C51: 25288.9592 | D51: 1190.48 | E51: 681.9792024 | F51: 0 | K51: 0 | M51: 23416.5 | W51: 86904.72 | X51: страховка | Y51: 31
A52: e | B52: 2026-05-02 | C52: 1841.541194 | D52: 1190.48 | E52: 651.061194 | F52: 0 | K52: 0 | M52: 0 | W52: 85714.24 | X52: нет | Y52: 30
A53: e | B53: 2026-06-02 | C53: 1854.027265 | D53: 1190.48 | E53: 663.5472652 | F53: 0 | K53: 0 | M53: 0 | W53: 84523.76 | X53: нет | Y53: 31
A54: e | B54: 2026-07-02 | C54: 1823.703835 | D54: 1190.48 | E54: 633.2238353 | F54: 0 | K54: 0 | M54: 0 | W54: 83333.28 | X54: нет | Y54: 30
A55: e | B55: 2026-08-02 | C55: 1835.595328 | D55: 1190.48 | E55: 645.1153279 | F55: 0 | K55: 0 | M55: 0 | W55: 82142.8 | X55: нет | Y55: 31
A56: e | B56: 2026-09-02 | C56: 1826.379359 | D56: 1190.48 | E56: 635.8993592 | F56: 0 | K56: 0 | M56: 0 | W56: 80952.32 | X56: нет | Y56: 31
A57: e | B57: 2026-10-02 | C57: 1796.947797 | D57: 1190.48 | E57: 606.4677973 | F57: 0 | K57: 0 | M57: 0 | W57: 79761.84 | X57: нет | Y57: 30
A58: e | B58: 2026-11-02 | C58: 1807.947422 | D58: 1190.48 | E58: 617.4674219 | F58: 0 | K58: 0 | M58: 0 | W58: 78571.36 | X58: нет | Y58: 31
A59: e | B59: 2026-12-02 | C59: 1779.110439 | D59: 1190.48 | E59: 588.6304387 | F59: 0 | K59: 0 | M59: 0 | W59: 77380.88 | X59: нет | Y59: 30
A60: e | B60: 2027-01-02 | C60: 1789.515485 | D60: 1190.48 | E60: 599.0354846 | F60: 0 | K60: 0 | M60: 0 | W60: 76190.4 | X60: нет | Y60: 31
A61: e | B61: 2027-02-02 | C61: 1780.299516 | D61: 1190.48 | E61: 589.819516 | F61: 0 | K61: 0 | M61: 0 | W61: 74999.92 | X61: нет | Y61: 31
A62: e | B62: 2027-03-02 | C62: 1714.896107 | D62: 1190.48 | E62: 524.4161073 | F62: 0 | K62: 0 | M62: 0 | W62: 73809.44 | X62: нет | Y62: 28
A63: e | B63: 2027-04-02 | C63: 25178.36758 | D63: 1190.48 | E63: 571.3875787 | F63: 0 | K63: 0 | M63: 23416.5 | W63: 72618.96 | X63: страховка | Y63: 31
A64: e | B64: 2027-05-02 | C64: 1734.517042 | D64: 1190.48 | E64: 544.037042 | F64: 0 | K64: 0 | M64: 0 | W64: 71428.48 | X64: нет | Y64: 30
A65: e | B65: 2027-06-02 | C65: 1743.435641 | D65: 1190.48 | E65: 552.9556414 | F65: 0 | K65: 0 | M65: 0 | W65: 70238 | X65: нет | Y65: 31
A66: e | B66: 2027-07-02 | C66: 1716.679683 | D66: 1190.48 | E66: 526.1996833 | F66: 0 | K66: 0 | M66: 0 | W66: 69047.52 | X66: нет | Y66: 30
A67: e | B67: 2027-08-02 | C67: 1725.003704 | D67: 1190.48 | E67: 534.5237041 | F67: 0 | K67: 0 | M67: 0 | W67: 67857.04 | X67: нет | Y67: 31
A68: e | B68: 2027-09-02 | C68: 1715.787735 | D68: 1190.48 | E68: 525.3077355 | F68: 0 | K68: 0 | M68: 0 | W68: 66666.56 | X68: нет | Y68: 31
A69: e | B69: 2027-10-02 | C69: 1689.923645 | D69: 1190.48 | E69: 499.4436453 | F69: 0 | K69: 0 | M69: 0 | W69: 65476.08 | X69: нет | Y69: 30
A70: e | B70: 2027-11-02 | C70: 1697.355798 | D70: 1190.48 | E70: 506.8757982 | F70: 0 | K70: 0 | M70: 0 | W70: 64285.6 | X70: нет | Y70: 31
A71: e | B71: 2027-12-02 | C71: 1672.086287 | D71: 1190.48 | E71: 481.6062867 | F71: 0 | K71: 0 | M71: 0 | W71: 63095.12 | X71: нет | Y71: 30
A72: e | B72: 2028-01-02 | C72: 1678.923861 | D72: 1190.48 | E72: 488.4438609 | F72: 0 | K72: 0 | M72: 0 | W72: 61904.64 | X72: нет | Y72: 31
A73: e | B73: 2028-02-02 | C73: 1669.707892 | D73: 1190.48 | E73: 479.2278923 | F73: 0 | K73: 0 | M73: 0 | W73: 60714.16 | X73: нет | Y73: 31
A74: e | B74: 2028-03-02 | C74: 1630.168574 | D74: 1190.48 | E74: 439.6885737 | F74: 0 | K74: 0 | M74: 0 | W74: 59523.68 | X74: нет | Y74: 29
A75: e | B75: 2028-04-02 | C75: 25067.77595 | D75: 1190.48 | E75: 460.795955 | F75: 0 | K75: 0 | M75: 23416.5 | W75: 58333.2 | X75: страховка | Y75: 31
A76: e | B76: 2028-05-02 | C76: 1627.49289 | D76: 1190.48 | E76: 437.01289 | F76: 0 | K76: 0 | M76: 0 | W76: 57142.72 | X76: нет | Y76: 30
A77: e | B77: 2028-06-02 | C77: 1632.844018 | D77: 1190.48 | E77: 442.3640177 | F77: 0 | K77: 0 | M77: 0 | W77: 55952.24 | X77: нет | Y77: 31
A78: e | B78: 2028-07-02 | C78: 1609.655531 | D78: 1190.48 | E78: 419.1755313 | F78: 0 | K78: 0 | M78: 0 | W78: 54761.76 | X78: нет | Y78: 30
A79: e | B79: 2028-08-02 | C79: 1614.41208 | D79: 1190.48 | E79: 423.9320804 | F79: 0 | K79: 0 | M79: 0 | W79: 53571.28 | X79: нет | Y79: 31
A80: e | B80: 2028-09-02 | C80: 1605.196112 | D80: 1190.48 | E80: 414.7161118 | F80: 0 | K80: 0 | M80: 0 | W80: 52380.8 | X80: нет | Y80: 31
A81: e | B81: 2028-10-02 | C81: 1582.899493 | D81: 1190.48 | E81: 392.4194933 | F81: 0 | K81: 0 | M81: 0 | W81: 51190.32 | X81: нет | Y81: 30
A82: e | B82: 2028-11-02 | C82: 1586.764174 | D82: 1190.48 | E82: 396.2841745 | F82: 0 | K82: 0 | M82: 0 | W82: 49999.84 | X82: нет | Y82: 31
A83: e | B83: 2028-12-02 | C83: 1565.062135 | D83: 1190.48 | E83: 374.5821347 | F83: 0 | K83: 0 | M83: 0 | W83: 48809.36 | X83: нет | Y83: 30
A84: e | B84: 2029-01-02 | C84: 1568.332237 | D84: 1190.48 | E84: 377.8522372 | F84: 0 | K84: 0 | M84: 0 | W84: 47618.88 | X84: нет | Y84: 31
A85: e | B85: 2029-02-02 | C85: 1559.116269 | D85: 1190.48 | E85: 368.6362685 | F85: 0 | K85: 0 | M85: 0 | W85: 46428.4 | X85: нет | Y85: 31
A86: e | B86: 2029-03-02 | C86: 1515.11769 | D86: 1190.48 | E86: 324.6376902 | F86: 0 | K86: 0 | M86: 0 | W86: 45237.92 | X86: нет | Y86: 28
A87: e | B87: 2029-04-02 | C87: 24957.18433 | D87: 1190.48 | E87: 350.2043312 | F87: 0 | K87: 0 | M87: 23416.5 | W87: 44047.44 | X87: страховка | Y87: 31
A88: e | B88: 2029-05-02 | C88: 1520.468738 | D88: 1190.48 | E88: 329.988738 | F88: 0 | K88: 0 | M88: 0 | W88: 42856.96 | X88: нет | Y88: 30
A89: e | B89: 2029-06-02 | C89: 1522.252394 | D89: 1190.48 | E89: 331.772394 | F89: 0 | K89: 0 | M89: 0 | W89: 41666.48 | X89: нет | Y89: 31
A90: e | B90: 2029-07-02 | C90: 1502.631379 | D90: 1190.48 | E90: 312.1513793 | F90: 0 | K90: 0 | M90: 0 | W90: 40476 | X90: нет | Y90: 30
A91: e | B91: 2029-08-02 | C91: 1503.820457 | D91: 1190.48 | E91: 313.3404567 | F91: 0 | K91: 0 | M91: 0 | W91: 39285.52 | X91: нет | Y91: 31
A92: e | B92: 2029-09-02 | C92: 1494.604488 | D92: 1190.48 | E92: 304.124488 | F92: 0 | K92: 0 | M92: 0 | W92: 38095.04 | X92: нет | Y92: 31
A93: e | B93: 2029-10-02 | C93: 1475.875341 | D93: 1190.48 | E93: 285.3953413 | F93: 0 | K93: 0 | M93: 0 | W93: 36904.56 | X93: нет | Y93: 30
A94: e | B94: 2029-11-02 | C94: 1476.172551 | D94: 1190.48 | E94: 285.6925507 | F94: 0 | K94: 0 | M94: 0 | W94: 35714.08 | X94: нет | Y94: 31
A95: e | B95: 2029-12-02 | C95: 1458.037983 | D95: 1190.48 | E95: 267.5579827 | F95: 0 | K95: 0 | M95: 0 | W95: 34523.6 | X95: нет | Y95: 30
A96: e | B96: 2030-01-02 | C96: 1457.740613 | D96: 1190.48 | E96: 267.2606134 | F96: 0 | K96: 0 | M96: 0 | W96: 33333.12 | X96: нет | Y96: 31
A97: e | B97: 2030-02-02 | C97: 1448.524645 | D97: 1190.48 | E97: 258.0446448 | F97: 0 | K97: 0 | M97: 0 | W97: 32142.64 | X97: нет | Y97: 31
A98: e | B98: 2030-03-02 | C98: 1415.228482 | D98: 1190.48 | E98: 224.7484817 | F98: 0 | K98: 0 | M98: 0 | W98: 30952.16 | X98: нет | Y98: 28
A99: e | B99: 2030-04-02 | C99: 24846.59271 | D99: 1190.48 | E99: 239.6127075 | F99: 0 | K99: 0 | M99: 23416.5 | W99: 29761.68 | X99: страховка | Y99: 31
A100: e | B100: 2030-05-02 | C100: 1413.444586 | D100: 1190.48 | E100: 222.964586 | F100: 0 | K100: 0 | M100: 0 | W100: 28571.2 | X100: нет | Y100: 30
A101: e | B101: 2030-06-02 | C101: 1411.66077 | D101: 1190.48 | E101: 221.1807702 | F101: 0 | K101: 0 | M101: 0 | W101: 27380.72 | X101: нет | Y101: 31
A102: e | B102: 2030-07-02 | C102: 1395.607227 | D102: 1190.48 | E102: 205.1272273 | F102: 0 | K102: 0 | M102: 0 | W102: 26190.24 | X102: нет | Y102: 30
A103: e | B103: 2030-08-02 | C103: 1393.228833 | D103: 1190.48 | E103: 202.7488329 | F103: 0 | K103: 0 | M103: 0 | W103: 24999.76 | X103: нет | Y103: 31
A104: e | B104: 2030-09-02 | C104: 1384.012864 | D104: 1190.48 | E104: 193.5328643 | F104: =$G$18 -> 0 | K104: 0 | M104: 0 | W104: 23809.28 | X104: нет | Y104: 31
A105: e | B105: 2030-10-02 | C105: 1368.851189 | D105: 1190.48 | E105: 178.3711893 | F105: 0 | K105: =IF(X105="страховка",$G$20,0) -> 0 | M105: =IF(X105="страховка",$G$21,0) -> 0 | W105: 22618.8 | X105: =IF(MONTH($B$40)-MONTH(B105)=0,"страховка","нет") -> нет | Y105: 30
A106: e | B106: =DATE(YEAR(B105),MONTH(B105)+1,DAY(B105)) -> 2030-11-02 | C106: =SUM(D106:V106) -> 1365.580927 | D106: =$A$14 -> 1190.48 | E106: =W105*$D$14/360*Y106 -> 175.100927 | F106: 0 | K106: 0 | M106: 0 | W106: =W105-D106 -> 21428.32 | X106: нет | Y106: =B106-B105 -> 31
A107: e | B107: 2030-12-02 | C107: 1351.013831 | D107: 1190.48 | E107: 160.5338307 | F107: 0 | K107: 0 | M107: 0 | W107: 20237.84 | X107: нет | Y107: 30
A108: e | B108: 2031-01-02 | C108: 1347.14899 | D108: 1190.48 | E108: 156.6689897 | F108: 0 | K108: 0 | M108: 0 | W108: 19047.36 | X108: нет | Y108: 31
A109: e | B109: 2031-02-02 | C109: 1337.933021 | D109: 1190.48 | E109: 147.4530211 | F109: 0 | K109: 0 | M109: 0 | W109: 17856.88 | X109: нет | Y109: 31
A110: e | B110: 2031-03-02 | C110: 1315.339273 | D110: 1190.48 | E110: 124.8592732 | F110: 0 | K110: 0 | M110: 0 | W110: 16666.4 | X110: нет | Y110: 28
A111: e | B111: 2031-04-02 | C111: 24736.00108 | D111: 1190.48 | E111: 129.0210838 | F111: 0 | K111: 0 | M111: 23416.5 | W111: 15475.92 | X111: страховка | Y111: 31
A112: e | B112: 2031-05-02 | C112: 1306.420434 | D112: 1190.48 | E112: 115.940434 | F112: 0 | K112: 0 | M112: 0 | W112: 14285.44 | X112: нет | Y112: 30
A113: e | B113: 2031-06-02 | C113: 1301.069146 | D113: 1190.48 | E113: 110.5891465 | F113: 0 | K113: 0 | M113: 0 | W113: 13094.96 | X113: нет | Y113: 31
A114: e | B114: 2031-07-02 | C114: 1288.583075 | D114: 1190.48 | E114: 98.10307533 | F114: 0 | K114: 0 | M114: 0 | W114: 11904.48 | X114: нет | Y114: 30
A115: e | B115: 2031-08-02 | C115: 1282.637209 | D115: 1190.48 | E115: 92.1572092 | F115: 0 | K115: 0 | M115: 0 | W115: 10714 | X115: нет | Y115: 31
A116: e | B116: 2031-09-02 | C116: 1273.421241 | D116: 1190.48 | E116: 82.94124056 | F116: 0 | K116: 0 | M116: 0 | W116: 9523.52 | X116: нет | Y116: 31
A117: e | B117: 2031-10-02 | C117: 1261.827037 | D117: 1190.48 | E117: 71.34703733 | F117: 0 | K117: 0 | M117: 0 | W117: 8333.04 | X117: нет | Y117: 30
A118: e | B118: 2031-11-02 | C118: 1254.989303 | D118: 1190.48 | E118: 64.50930327 | F118: 0 | K118: 0 | M118: 0 | W118: 7142.56 | X118: нет | Y118: 31
A119: e | B119: 2031-12-02 | C119: 1243.989679 | D119: 1190.48 | E119: 53.50967867 | F119: 0 | K119: 0 | M119: 0 | W119: 5952.08 | X119: нет | Y119: 30
A120: e | B120: 2032-01-02 | C120: 1236.557366 | D120: 1190.48 | E120: 46.07736598 | F120: 0 | K120: 0 | M120: 0 | W120: 4761.6 | X120: нет | Y120: 31
A121: e | B121: 2032-02-02 | C121: 1227.341397 | D121: 1190.48 | E121: 36.86139733 | F121: 0 | K121: 0 | M121: 0 | W121: 3571.12 | X121: нет | Y121: 31
A122: e | B122: 2032-03-02 | C122: 1216.341853 | D122: 1190.48 | E122: 25.86185264 | F122: 0 | K122: 0 | M122: 0 | W122: 2380.64 | X122: нет | Y122: 29
A123: e | B123: 2032-04-02 | C123: 24625.40946 | D123: 1190.48 | E123: 18.42946004 | F123: 0 | K123: 0 | M123: 23416.5 | W123: 1190.16 | X123: страховка | Y123: 31
A124: e | B124: 2032-05-02 | C124: 1199.396282 | D124: 1190.48 | E124: 8.916282 | F124: 0 | W124: -0.32 | Y124: 30
B125: Усього | C125: 296278.2326 | D125: 100000.32 | E125: 32362.41263 | F125: 0 | G125: 0 | H125: 0 | I125: 0 | J125: 2000 | K125: 0 | L125: 0 | M125: 187332 | N125: 0 | O125: 0 | P125: 1500 | Q125: 0 | R125: 8375 | S125: 0 | T125: 0 | U125: =XIRR(C40:C124,B40:B124) -> 0.8040564179 | V125: 231569.7326
B127: Загальні витрати за кредитом ( проценти за користування кредитом, комісії та інші обовязкові платежі за супровідні послуги кредитодавця, кредитного посередника (за наявності) та третіх осіб, повязані з отриманням, обслуговуванням та поверненням кредиту), грн з них: | J127: =V125 -> 231569.7326
B128: - Платежі за супутні послуги кредитодавця, повязані з отриманням, обслуговуванням та поверненням кредиту), грн | J128: =E125+F125+G125+I125+J125 -> 34362.41263
B129: - Платежі за супутні послуги третіх осіб, повязані з отриманням, обслуговуванням та поверненням кредиту), грн | J129: =K125+L125+M125+N125+O125+P125+R125+T125 -> 197207
B130: Орієнтовна загальна вартість кредиту для споживача за весь строк користування кредитом ( у т.ч. тіло кредиту, відсотки, комісії та інші платежі), грн | J130: =J127+D9 -> 331569.7326
B131: Орієнтовна реальна річна процентна ставка, % річних | J131: =U125 -> 0.8040564179
B132: Застереження: Розрахунок загальної вартості Кредиту і реальної процентної ставки носить інформативний характер для Позичальника і визначено станом на дату укладання Кредитного договору. При здійсненні розрахунку загальної вартості Кредиту і реальної процентної ставки Кредитор враховував вартість супутніх послуг третіх осіб, послуги кредитного посередник ( за наявності). В розрахунок загальної вартості Кредиту і реальної процентної ставки не включались умовні платежі Позичальника по Договору (пені, штрафи, які встановлюються згідно з Договором).
B133: Наведені обчислення реальної річної процентної ставки та орієнтовної загальної вартості кредиту для споживача є репрезентативними та базуються на обраних споживачем умовах кредитування, викладених вище, і на припущенні, що договір про споживчий кредит залишатиметься дійсним протягом погодженого строку, а кредитодавець і споживач виконають свої обов’язки на умовах та у строки, визначені в договорі.Реальна річна процентна ставка обчислена на основі припущення, що процентна ставка та інші платежі за послуги кредитодавця залишатимуться незмінними та застосовуватимуться протягом строку дії договору про споживчий кредит. Застереження: використання інших способів надання кредиту та/або зміна інших вищезазначених умов кредитування можуть мати наслідком застосування іншої реальної річної процентної ставки та орієнтовної загальної вартості кредиту для споживача. Орієнтовна реальна річна процентна ставка обчислена з використанням фінансової функції ЧИСТВНДОХ програмного продукту Microsoft Excel.
B134: Позичальник не сплачує Кредитору комісійних винагород за розрахунково-касове обслуговування, що пов‘язані з погашенням Кредиту та процентів за ним Позичальником у готівковій чи безготівковій формі через установи Кредитора. У випадку погашення Позичальником Кредиту та процентів за ним не через установи Кредитора Позичальник буде сплачувати послуги інших банків згідно з тарифами, які діятимуть в таких банках на момент здійснення розрахунково-касового обслуговування Позичальника.

Sheet ануітет
F1: до 165 ПМ | G1: =H4*165 -> 499620 | H1: 0.03
F2: від 165 до 290 ПМ | G2: =H4*290 -> 878120 | H2: 0.04
F3: більше 290 ПМ | H3: 0.05
D4: КАЛЬКУЛЯТОР | H4: 3028
D5: Обрані Споживачем умови кредитування
B7: Кредит видається на:
B8: Дата надання кредиту | D8: =TODAY() -> 2025-04-30 | K8: Заповніть дані, зазначені червоним кольором
B9: Сума кредиту,грн.: | D9: 1000000 | E9: гривень
B10: Забезпечення | D10: 2500000 | E10: гривень | F10: =D10/1.2 -> 2083333.333
B11: Строк користування кредитом (в місяцях): | D11: 72
B12: Погашення основної суми кредиту: щомісяця
B13: Погашення процентів: щомісяця
A14: =ROUND(D9/D11,2) -> 13888.89 | B14: Номінальна процентна ставка: | D14: =VLOOKUP(D15,'Номінальна %ставка'!$A$2:$H$8,MATCH(ануітет!$D$11,'Номінальна %ставка'!$A$2:$H$2,0),0) -> 0.1049 | E14: річних | F14: =D14 -> 0.1049 | I14: =F14/12 -> 0.008741666667
B15: Авансовий внесок | D15: 0.6 | F15: =D10*D15 -> 1500000 | G15: гривень
B16: Супутні витрати позичальника:
A17: =DATE(YEAR(B40),MONTH(B40)+1,DAY(B40)) -> 2025-05-30 | B17: комісія за надання кредиту (разова): | D17: 0 | E17: від основної суми кредиту. Всього: | G17: =D17*D9 -> 0 | I17: гривень
B18: обслуговування кредитної заборгованості: | D18: 0 | E18: на місяць від основної суми кредиту: | G18: =D18*D9 -> 0 | I18: гривень
B19: розрахунково-касове обслуговування: | G19: 0 | I19: гривень
B20: страхування НВ: | D20: 0 | E20: на рік від основної суми кредиту: | G20: =D20*D9 -> 0 | I20: гривень
B21: страхування КАСКО: | D21: 0.0699 | E21: на рік від залогової вартості: | G21: =D10*D21 -> 174750 | I21: гривень
B22: послуги нотаріуса: | G22: 0 | I22: гривень
B23: надання витягів/внесення запису(ів) до Державного реєстру обтяжень рухомого майна | E23: фіксована сума (одноразово) | G23: 0 | I23: гривень
B24: Державна реєстрація транспортного засобу | G24: 1500 | I24: гривень
B25: отримання витягів/внесення запису до ДРОРМ | G25: 2000 | I25: гривень
B26: Збір до Пенсійного фонду | D26: =IF(F10<G1,H1,IF(AND(F10>=G1,F10<=G2),H2,IF(F10>G2,H3))) -> 0.05 | E26: від суми кредиту (одноразово) | G26: =(D10/1.2)*D26 -> 104166.6667 | I26: гривень
B27: оцінка майна: | E27: фіксована сума (одноразово) | G27: 0 | I27: гривень
B28: інша плата за послуги кредитного посередника | G28: 0 | I28: гривень
B29: ВСЬОГО | G29: =SUM(G17:G28) -> 282416.6667 | I29: гривень
F31: =PMT(F14/12,E11,-D9) ->  | G31: =IPMT(F14/12,1,24,-D9) -> 8741.666667
D32: Розрахунок загальної вартості споживчого кредиту та реальної процентної ставки
B34: Дата видачі кредиту/дата платежу | C34: Чиста сума кредиту/сума платежу за розрахунковий період, грн. | D34: Види платежів за кредитом | U34: Реальна процентна ставка, % | V34: Абсолютне значення подорожчання кредиту, грн.
D35: сума кредиту за договором | E35: проценти за користування кредитом | F35: платежі за супутні послуги
F36: банку | K36: третіх осіб | T36: кредитного посередника (за наявності)
F37: обслуговування кредитної заборгованості | G37: РКО | I37: комісія за надання кредиту | J37: інші послуги банку (отримання витягів/внесення запису до ДРОРМ) | K37: страхування НВ | L37: послуги нотаріусів | M37: страхування КАСКО: | N37: оцінка майна | O37: надання витягів/внесення запису(ів) до Державного реєстру обтяжень рухомого майна | P37: Державна реєстрація транспортного засобу | R37: Збір до Пенсійного фонду | T37: інша плата за послуги кредитного посередника
B38: 1 | C38: 2 | D38: 3 | E38: 4 | F38: 5 | G38: 6 | I38: 7 | J38: 8 | K38: 9 | L38: 10 | M38: 11 | N38: 12 | O38: 13 | P38: 14 | R38: 15 | T38: 16 | U38: 17 | V38: 18
W39: остаток | Z39: ан платеж
A40: e | B40: =D8 -> 2025-04-30 | C40: =-(D40-SUM(F40:T40)) -> -717583.3333 | D40: =D9 -> 1000000 | E40: х | F40: =$G$18 -> 0 | G40: =G19 -> 0 | I40: =G17 -> 0 | J40: =G25 -> 2000 | K40: =IF(X40="страховка",$G$20,0) -> 0 | L40: =G22 -> 0 | M40: =IF(X40="страховка",$G$21,0) -> 174750 | N40: =G27 -> 0 | O40: =G23 -> 0 | P40: =G24 -> 1500 | R40: =G26 -> 104166.6667 | T40: =G28 -> 0 | U40: х | V40: х | W40: 1000000 | X40: =IF(MONTH($B$40)-MONTH(B40)=0,"страховка","нет") -> страховка | AB40: =(D9*D14/12)/(1-(1/(1+D14/12)^D11)) -> 18773.88792
A41: e | B41: =DATE(YEAR(B40),MONTH(B40)+1,DAY(B40)) -> 2025-05-30 | C41: =SUM(D41:V41) -> 18773.88792 | D41: =Z41-E41 -> 10032.22126 | E41: =W40*$D$14/12 -> 8741.666667 | F41: =$G$18 -> 0 | K41: =IF(X41="страховка",$G$20,0) -> 0 | M41: =IF(X41="страховка",$G$21,0) -> 0 | W41: =W40-D41 -> 989967.7787 | X41: =IF(MONTH($B$40)-MONTH(B41)=0,"страховка","нет") -> нет | Y41: =B41-B40 -> 30 | Z41: =PMT($D$14/12,$D$11,-$D$9) -> 18773.88792
A42: e | B42: =DATE(YEAR(B41),MONTH(B41)+1,DAY(B41)) -> 2025-06-30 | C42: =SUM(D42:V42) -> 18773.88792 | D42: =Z42-E42 -> 10119.91959 | E42: =W41*$D$14/12 -> 8653.968333 | F42: 0 | K42: 0 | M42: 0 | W42: =W41-D42 -> 979847.8592 | X42: нет | Y42: =B42-B41 -> 31 | Z42: =PMT($D$14/12,$D$11,-$D$9) -> 18773.88792
A43: e | B43: 2025-07-30 | C43: 18773.88792 | D43: 10208.38456 | E43: 8565.503369 | F43: 0 | K43: 0 | M43: 0 | W43: 969639.4746 | X43: нет | Y43: 30 | Z43: 18773.88792
A44: e | B44: 2025-08-30 | C44: 18773.88792 | D44: 10297.62285 | E44: 8476.265074 | F44: 0 | K44: 0 | M44: 0 | W44: 959341.8517 | X44: нет | Y44: 31 | Z44: 18773.88792
A45: e | B45: 2025-09-30 | C45: 18773.88792 | D45: 10387.64124 | E45: 8386.246687 | F45: 0 | K45: 0 | M45: 0 | W45: 948954.2105 | X45: нет | Y45: 31 | Z45: 18773.88792
A46: e | B46: 2025-10-30 | C46: 18773.88792 | D46: 10478.44653 | E46: 8295.44139 | F46: 0 | K46: 0 | M46: 0 | W46: 938475.764 | X46: нет | Y46: 30 | Z46: 18773.88792
A47: e | B47: 2025-11-30 | C47: 18773.88792 | D47: 10570.04562 | E47: 8203.842303 | F47: 0 | K47: 0 | M47: 0 | W47: 927905.7184 | X47: нет | Y47: 31 | Z47: 18773.88792
A48: e | B48: 2025-12-30 | C48: 18773.88792 | D48: 10662.44544 | E48: 8111.442488 | F48: 0 | K48: 0 | M48: 0 | W48: 917243.2729 | X48: нет | Y48: 30 | Z48: 18773.88792
A49: e | B49: 2026-01-30 | C49: 18773.88792 | D49: 10755.65298 | E49: 8018.234944 | F49: 0 | K49: 0 | M49: 0 | W49: 906487.6199 | X49: нет | Y49: 31 | Z49: 18773.88792
A50: e | B50: 2026-03-02 | C50: 18773.88792 | D50: 10849.67531 | E50: 7924.212611 | F50: 0 | K50: 0 | M50: 0 | W50: 895637.9446 | X50: нет | Y50: 31 | Z50: 18773.88792
A51: e | B51: 2026-04-02 | C51: 193523.8879 | D51: 10944.51956 | E51: 7829.368366 | F51: 0 | K51: 0 | M51: 174750 | W51: 884693.4251 | X51: страховка | Y51: 31 | Z51: 18773.88792
A52: e | B52: 2026-05-02 | C52: 18773.88792 | D52: 11040.1929 | E52: 7733.695024 | F52: 0 | K52: 0 | M52: 0 | W52: 873653.2322 | X52: нет | Y52: 30 | Z52: 18773.88792
A53: e | B53: 2026-06-02 | C53: 18773.88792 | D53: 11136.70259 | E53: 7637.185338 | F53: 0 | K53: 0 | M53: 0 | W53: 862516.5296 | X53: нет | Y53: 31 | Z53: 18773.88792
A54: e | B54: 2026-07-02 | C54: 18773.88792 | D54: 11234.05593 | E54: 7539.831996 | F54: 0 | K54: 0 | M54: 0 | W54: 851282.4737 | X54: нет | Y54: 30 | Z54: 18773.88792
A55: e | B55: 2026-08-02 | C55: 18773.88792 | D55: 11332.2603 | E55: 7441.627624 | F55: 0 | K55: 0 | M55: 0 | W55: 839950.2134 | X55: нет | Y55: 31 | Z55: 18773.88792
A56: e | B56: 2026-09-02 | C56: 18773.88792 | D56: 11431.32314 | E56: 7342.564782 | F56: 0 | K56: 0 | M56: 0 | W56: 828518.8902 | X56: нет | Y56: 31 | Z56: 18773.88792
A57: e | B57: 2026-10-02 | C57: 18773.88792 | D57: 11531.25196 | E57: 7242.635965 | F57: 0 | K57: 0 | M57: 0 | W57: 816987.6383 | X57: нет | Y57: 30 | Z57: 18773.88792
A58: e | B58: 2026-11-02 | C58: 18773.88792 | D58: 11632.05432 | E58: 7141.833604 | F58: 0 | K58: 0 | M58: 0 | W58: 805355.5839 | X58: нет | Y58: 31 | Z58: 18773.88792
A59: e | B59: 2026-12-02 | C59: 18773.88792 | D59: 11733.73786 | E59: 7040.150063 | F59: 0 | K59: 0 | M59: 0 | W59: 793621.8461 | X59: нет | Y59: 30 | Z59: 18773.88792
A60: e | B60: 2027-01-02 | C60: 18773.88792 | D60: 11836.31029 | E60: 6937.577638 | F60: 0 | K60: 0 | M60: 0 | W60: 781785.5358 | X60: нет | Y60: 31 | Z60: 18773.88792
A61: e | B61: 2027-02-02 | C61: 18773.88792 | D61: 11939.77937 | E61: 6834.108559 | F61: 0 | K61: 0 | M61: 0 | W61: 769845.7564 | X61: нет | Y61: 31 | Z61: 18773.88792
A62: e | B62: 2027-03-02 | C62: 18773.88792 | D62: 12044.15294 | E62: 6729.734987 | F62: 0 | K62: 0 | M62: 0 | W62: 757801.6035 | X62: нет | Y62: 28 | Z62: 18773.88792
A63: e | B63: 2027-04-02 | C63: 193523.8879 | D63: 12149.43891 | E63: 6624.449017 | F63: 0 | K63: 0 | M63: 174750 | W63: 745652.1646 | X63: страховка | Y63: 31 | Z63: 18773.88792
A64: e | B64: 2027-05-02 | C64: 18773.88792 | D64: 12255.64525 | E64: 6518.242672 | F64: 0 | K64: 0 | M64: 0 | W64: 733396.5193 | X64: нет | Y64: 30 | Z64: 18773.88792
A65: e | B65: 2027-06-02 | C65: 18773.88792 | D65: 12362.78002 | E65: 6411.107906 | F65: 0 | K65: 0 | M65: 0 | W65: 721033.7393 | X65: нет | Y65: 31 | Z65: 18773.88792
A66: e | B66: 2027-07-02 | C66: 18773.88792 | D66: 12470.85132 | E66: 6303.036604 | F66: 0 | K66: 0 | M66: 0 | W66: 708562.888 | X66: нет | Y66: 30 | Z66: 18773.88792
A67: e | B67: 2027-08-02 | C67: 18773.88792 | D67: 12579.86734 | E67: 6194.020579 | F67: 0 | K67: 0 | M67: 0 | W67: 695983.0206 | X67: нет | Y67: 31 | Z67: 18773.88792
A68: e | B68: 2027-09-02 | C68: 18773.88792 | D68: 12689.83635 | E68: 6084.051572 | F68: 0 | K68: 0 | M68: 0 | W68: 683293.1843 | X68: нет | Y68: 31 | Z68: 18773.88792
A69: e | B69: 2027-10-02 | C69: 18773.88792 | D69: 12800.76667 | E69: 5973.121253 | F69: 0 | K69: 0 | M69: 0 | W69: 670492.4176 | X69: нет | Y69: 30 | Z69: 18773.88792
A70: e | B70: 2027-11-02 | C70: 18773.88792 | D70: 12912.66671 | E70: 5861.221217 | F70: 0 | K70: 0 | M70: 0 | W70: 657579.7509 | X70: нет | Y70: 31 | Z70: 18773.88792
A71: e | B71: 2027-12-02 | C71: 18773.88792 | D71: 13025.54493 | E71: 5748.342989 | F71: 0 | K71: 0 | M71: 0 | W71: 644554.206 | X71: нет | Y71: 30 | Z71: 18773.88792
A72: e | B72: 2028-01-02 | C72: 18773.88792 | D72: 13139.40991 | E72: 5634.478017 | F72: 0 | K72: 0 | M72: 0 | W72: 631414.7961 | X72: нет | Y72: 31 | Z72: 18773.88792
A73: e | B73: 2028-02-02 | C73: 18773.88792 | D73: 13254.27025 | E73: 5519.617676 | F73: 0 | K73: 0 | M73: 0 | W73: 618160.5258 | X73: нет | Y73: 31 | Z73: 18773.88792
A74: e | B74: 2028-03-02 | C74: 18773.88792 | D74: 13370.13466 | E74: 5403.753263 | F74: 0 | K74: 0 | M74: 0 | W74: 604790.3912 | X74: нет | Y74: 29 | Z74: 18773.88792
A75: e | B75: 2028-04-02 | C75: 193523.8879 | D75: 13487.01192 | E75: 5286.876003 | F75: 0 | K75: 0 | M75: 174750 | W75: 591303.3792 | X75: страховка | Y75: 31 | Z75: 18773.88792
A76: e | B76: 2028-05-02 | C76: 18773.88792 | D76: 13604.91088 | E76: 5168.97704 | F76: 0 | K76: 0 | M76: 0 | W76: 577698.4684 | X76: нет | Y76: 30 | Z76: 18773.88792
A77: e | B77: 2028-06-02 | C77: 18773.88792 | D77: 13723.84048 | E77: 5050.047444 | F77: 0 | K77: 0 | M77: 0 | W77: 563974.6279 | X77: нет | Y77: 31 | Z77: 18773.88792
A78: e | B78: 2028-07-02 | C78: 18773.88792 | D78: 13843.80972 | E78: 4930.078205 | F78: 0 | K78: 0 | M78: 0 | W78: 550130.8182 | X78: нет | Y78: 30 | Z78: 18773.88792
A79: e | B79: 2028-08-02 | C79: 18773.88792 | D79: 13964.82769 | E79: 4809.060235 | F79: 0 | K79: 0 | M79: 0 | W79: 536165.9905 | X79: нет | Y79: 31 | Z79: 18773.88792
A80: e | B80: 2028-09-02 | C80: 18773.88792 | D80: 14086.90356 | E80: 4686.984367 | F80: 0 | K80: 0 | M80: 0 | W80: 522079.0869 | X80: нет | Y80: 31 | Z80: 18773.88792
A81: e | B81: 2028-10-02 | C81: 18773.88792 | D81: 14210.04657 | E81: 4563.841351 | F81: 0 | K81: 0 | M81: 0 | W81: 507869.0403 | X81: нет | Y81: 30 | Z81: 18773.88792
A82: e | B82: 2028-11-02 | C82: 18773.88792 | D82: 14334.26606 | E82: 4439.621861 | F82: 0 | K82: 0 | M82: 0 | W82: 493534.7743 | X82: нет | Y82: 31 | Z82: 18773.88792
A83: e | B83: 2028-12-02 | C83: 18773.88792 | D83: 14459.57144 | E83: 4314.316485 | F83: 0 | K83: 0 | M83: 0 | W83: 479075.2028 | X83: нет | Y83: 30 | Z83: 18773.88792
A84: e | B84: 2029-01-02 | C84: 18773.88792 | D84: 14585.97219 | E84: 4187.915732 | F84: 0 | K84: 0 | M84: 0 | W84: 464489.2306 | X84: нет | Y84: 31 | Z84: 18773.88792
A85: e | B85: 2029-02-02 | C85: 18773.88792 | D85: 14713.4779 | E85: 4060.410025 | F85: 0 | K85: 0 | M85: 0 | W85: 449775.7527 | X85: нет | Y85: 31 | Z85: 18773.88792
A86: e | B86: 2029-03-02 | C86: 18773.88792 | D86: 14842.09822 | E86: 3931.789705 | F86: 0 | K86: 0 | M86: 0 | W86: 434933.6545 | X86: нет | Y86: 28 | Z86: 18773.88792
A87: e | B87: 2029-04-02 | C87: 193523.8879 | D87: 14971.84289 | E87: 3802.04503 | F87: 0 | K87: 0 | M87: 174750 | W87: 419961.8116 | X87: страховка | Y87: 31 | Z87: 18773.88792
A88: e | B88: 2029-05-02 | C88: 18773.88792 | D88: 15102.72175 | E88: 3671.16617 | F88: 0 | K88: 0 | M88: 0 | W88: 404859.0899 | X88: нет | Y88: 30 | Z88: 18773.88792
A89: e | B89: 2029-06-02 | C89: 18773.88792 | D89: 15234.74471 | E89: 3539.143211 | F89: 0 | K89: 0 | M89: 0 | W89: 389624.3452 | X89: нет | Y89: 31 | Z89: 18773.88792
A90: e | B90: 2029-07-02 | C90: 18773.88792 | D90: 15367.92177 | E90: 3405.966151 | F90: 0 | K90: 0 | M90: 0 | W90: 374256.4234 | X90: нет | Y90: 30 | Z90: 18773.88792
A91: e | B91: 2029-08-02 | C91: 18773.88792 | D91: 15502.26302 | E91: 3271.624901 | F91: 0 | K91: 0 | M91: 0 | W91: 358754.1604 | X91: нет | Y91: 31 | Z91: 18773.88792
A92: e | B92: 2029-09-02 | C92: 18773.88792 | D92: 15637.77864 | E92: 3136.109285 | F92: 0 | K92: 0 | M92: 0 | W92: 343116.3817 | X92: нет | Y92: 31 | Z92: 18773.88792
A93: e | B93: 2029-10-02 | C93: 18773.88792 | D93: 15774.47889 | E93: 2999.409037 | F93: 0 | K93: 0 | M93: 0 | W93: 327341.9028 | X93: нет | Y93: 30 | Z93: 18773.88792
A94: e | B94: 2029-11-02 | C94: 18773.88792 | D94: 15912.37412 | E94: 2861.513801 | F94: 0 | K94: 0 | M94: 0 | W94: 311429.5287 | X94: нет | Y94: 31 | Z94: 18773.88792
A95: e | B95: 2029-12-02 | C95: 18773.88792 | D95: 16051.47479 | E95: 2722.41313 | F95: 0 | K95: 0 | M95: 0 | W95: 295378.0539 | X95: нет | Y95: 30 | Z95: 18773.88792
A96: e | B96: 2030-01-02 | C96: 18773.88792 | D96: 16191.79144 | E96: 2582.096488 | F96: 0 | K96: 0 | M96: 0 | W96: 279186.2625 | X96: нет | Y96: 31 | Z96: 18773.88792
A97: e | B97: 2030-02-02 | C97: 18773.88792 | D97: 16333.33468 | E97: 2440.553245 | F97: 0 | K97: 0 | M97: 0 | W97: 262852.9278 | X97: нет | Y97: 31 | Z97: 18773.88792
A98: e | B98: 2030-03-02 | C98: 18773.88792 | D98: 16476.11525 | E98: 2297.772677 | F98: 0 | K98: 0 | M98: 0 | W98: 246376.8126 | X98: нет | Y98: 28 | Z98: 18773.88792
A99: e | B99: 2030-04-02 | C99: 193523.8879 | D99: 16620.14395 | E99: 2153.74397 | F99: 0 | K99: 0 | M99: 174750 | W99: 229756.6686 | X99: страховка | Y99: 31 | Z99: 18773.88792
A100: e | B100: 2030-05-02 | C100: 18773.88792 | D100: 16765.43171 | E100: 2008.456211 | F100: 0 | W100: 212991.2369 | Y100: 30 | Z100: 18773.88792
B101: Усього | C101: 2003246.179 | D101: 1000000 | E101: 304246.179 | F101: 0 | G101: 0 | H101: 0 | I101: 0 | J101: 2000 | K101: 0 | L101: 0 | M101: 838800 | N101: 0 | O101: 0 | P101: 1500 | Q101: 0 | R101: 83333.33333 | S101: 0 | T101: 0 | U101: =XIRR(C40:C100,B40:B100) -> 0.5746690571 | V101: 1229879.512
B103: Загальні витрати за кредитом( проценти за користування кредитом, комісії та інші обовязкові платежі за супровідні послуги кредитодавця, кредитного посередника (за наявності) та третіх осіб, повязані з отриманням, обслуговуванням та поверненням кредиту), грн з них: | J103: =V101 -> 1229879.512
B104: - Платежі за супутні послуги кредитодавця, повязані з отриманням, обслуговуванням та поверненням кредиту), грн | J104: =E101+F101+G101+I101+J101 -> 306246.179
B105: - Платежі за супутні послуги третіх осіб, повязані з отриманням, обслуговуванням та поверненням кредиту), грн | J105: =K101+L101+M101+N101+O101+P101+R101+T101 -> 923633.3333
B106: Орієнтовна загальна вартість кредиту для споживача за весь строк користування кредитом ( у т.ч. тіло кредиту, відсотки, комісії та інші платежі), грн | J106: =J103+D9 -> 2229879.512
B107: Орієнтовна реальна річна процентна ставка, % річних | J107: =U101 -> 0.5746690571
B108: Застереження: Розрахунок загальної вартості Кредиту і реальної процентної ставки носить інформативний характер для Позичальника і визначено станом на дату укладання Кредитного договору. При здійсненні розрахунку загальної вартості Кредиту і реальної процентної ставки Кредитор враховував вартість супутніх послуг третіх осіб, послуги кредитного посередник ( за наявності). В розрахунок загальної вартості Кредиту і реальної процентної ставки не включались умовні платежі Позичальника по Договору (пені, штрафи, які встановлюються згідно з Договором).
B109: Наведені обчислення реальної річної процентної ставки та орієнтовної загальної вартості кредиту для споживача є репрезентативними та базуються на обраних споживачем умовах кредитування, викладених вище, і на припущенні, що договір про споживчий кредит залишатиметься дійсним протягом погодженого строку, а кредитодавець і споживач виконають свої обов’язки на умовах та у строки, визначені в договорі.Реальна річна процентна ставка обчислена на основі припущення, що процентна ставка та інші платежі за послуги кредитодавця залишатимуться незмінними та застосовуватимуться протягом строку дії договору про споживчий кредит. Застереження: використання інших способів надання кредиту та/або зміна інших вищезазначених умов кредитування можуть мати наслідком застосування іншої реальної річної процентної ставки та орієнтовної загальної вартості кредиту для споживача. Орієнтовна реальна річна процентна ставка обчислена з використанням фінансової функції ЧИСТВНДОХ програмного продукту Microsoft Excel.
B110: Позичальник не сплачує Кредитору комісійних винагород за розрахунково-касове обслуговування, що пов‘язані з погашенням Кредиту та процентів за ним Позичальником у готівковій чи безготівковій формі через установи Кредитора. У випадку погашення Позичальником Кредиту та процентів за ним не через установи Кредитора Позичальник буде сплачувати послуги інших банків згідно з тарифами, які діятимуть в таких банках на момент здійснення розрахунково-касового обслуговування Позичальника.

Sheet Номінальна %ставка (hidden)
B1: Строк кредиту, міс.
A2: Авансовий внесок | B2: 12 | C2: 24 | D2: 36 | E2: 48 | F2: 60 | G2: 72 | H2: 84
A3: 0.2 | B3: 0.0899 | C3: 0.1249 | D3: 0.1349 | E3: 0.1449 | F3: 0.1499 | G3: 0.1499 | H3: 0.1549
A4: 0.3 | B4: 0.0799 | C4: 0.1299 | D4: 0.1449 | E4: 0.1499 | F4: 0.1549 | G4: 0.1649 | H4: 0.1649
A5: 0.4 | B5: 0.0649 | C5: 0.0999 | D5: 0.1149 | E5: 0.1249 | F5: 0.1299 | G5: 0.1349 | H5: 0.1399
A6: 0.5 | B6: 0.0399 | C6: 0.0799 | D6: 0.0999 | E6: 0.1099 | F6: 0.1199 | G6: 0.1249 | H6: 0.1299
A7: 0.6 | B7: 0.0099 | C7: 0.0599 | D7: 0.0799 | E7: 0.0849 | F7: 0.0949 | G7: 0.1049 | H7: 0.1099
A8: 0.7 | B8: 0.0001 | C8: 0.0199 | D8: 0.0399 | E8: 0.0599 | F8: 0.0699 | G8: 0.0799 | H8: 0.0899
A10: 12 міс. | B10: 0.0899 | C10: 0.0799 | D10: 0.0649 | E10: 0.0399 | F10: 0.0099 | G10: 0.0001
A11: 24 міс. | B11: 0.1249 | C11: 0.1299 | D11: 0.0999 | E11: 0.0799 | F11: 0.0599 | G11: 0.0199
A12: 36 міс. | B12: 0.1349 | C12: 0.1449 | D12: 0.1149 | E12: 0.0999 | F12: 0.0799 | G12: 0.0399
A13: 48 міс. | B13: 0.1449 | C13: 0.1499 | D13: 0.1249 | E13: 0.1099 | F13: 0.0849 | G13: 0.0599
A14: 60 міс. | B14: 0.1499 | C14: 0.1549 | D14: 0.1299 | E14: 0.1199 | F14: 0.0949 | G14: 0.0699
A15: 72 міс. | B15: 0.1499 | C15: 0.1649 | D15: 0.1349 | E15: 0.1249 | F15: 0.1049 | G15: 0.0799
A16: 84 міс. | B16: 0.1549 | C16: 0.1649 | D16: 0.1399 | E16: 0.1299 | F16: 0.1099 | G16: 0.0899
A17: Строк кредиту | B17: Авансовий внесок (від вартості суми авто)
B18: від 20% | C18: від 30% | D18: від 40% | E18: від 50% | F18: від 60%
B19: Річна процентна ставка,%
A20: 12 міс. | D20: 0.0199 | E20: 0.0001 | F20: 0.0001
A21: 24 міс. | D21: 0.0799 | E21: 0.0499 | F21: 0.0299
A22: 36 міс. | D22: 0.1099 | E22: 0.0899 | F22: 0.0599
A23: 48 міс. | D23: 0.1199 | E23: 0.0999 | F23: 0.0799
A24: 60 міс. | D24: 0.1299 | E24: 0.1099 | F24: 0.0899

Sheet Лист1 (hidden)
